[Event "Swedish Chess Championship 2019: Minior-SM"]
[Site "Stiga Sports Arena, Arenatorget 1, Eskilstuna, Sweden, Sweden"]
[Date "2019.07.10"]
[Round "4.1"]
[White "Falkevall, Axel"]
[Black "Tran, Alva Ling"]
[Result "1-0"]
[TimeControl "90 minutes for 40 moves + 30 minutes for the rest of the game + 30 seconds per move from move one"]
[WhiteFideId "1735560"]
[BlackFideId "1753223"]
[WhiteElo "2067"]
[BlackElo "1712"]

1. e4 {[%clk 01:30:59]} {[%emt 00:00:01]} c5 {[%clk 01:30:55]} {[%emt
00:00:05]} 2. Nf3 {[%clk 01:31:21]} {[%emt 00:00:08]} e6 {[%clk 01:31:13]}
{[%emt 00:00:12]} 3. c3 {[%clk 01:31:47]} {[%emt 00:00:04]} d5 {[%clk
01:31:15]} {[%emt 00:00:29]} 4. exd5 {[%clk 01:31:54]} {[%emt 00:00:23]} exd5
{[%clk 01:31:34]} {[%emt 00:00:10]} 5. d4 {[%clk 01:32:19]} {[%emt 00:00:05]}
c4 {[%clk 01:31:31]} {[%emt 00:00:34]} 6. b3 {[%clk 01:31:59]} {[%emt
00:00:49]} b5 {[%clk 01:30:27]} {[%emt 00:01:34]} 7. a4 {[%clk 01:31:39]}
{[%emt 00:00:51]} Bg4 {[%clk 01:26:44]} {[%emt 00:04:13]} 8. axb5 {[%clk
01:30:25]} {[%emt 00:01:44]} cxb3 {[%clk 01:24:36]} {[%emt 00:02:37]} 9. Be2
{[%clk 01:29:34]} {[%emt 00:01:20]} Nf6 {[%clk 01:22:18]} {[%emt 00:02:49]} 10.
O-O {[%clk 01:28:01]} {[%emt 00:02:03]} Bd6 {[%clk 01:20:09]} {[%emt 00:02:40]}
11. Qxb3 {[%clk 01:25:42]} {[%emt 00:02:48]} Nbd7 {[%clk 01:17:26]} {[%emt
00:03:13]} 12. Ba3 {[%clk 01:22:45]} {[%emt 00:03:28]} Nb6 {[%clk 01:11:36]}
{[%emt 00:06:20]} 13. Bxd6 {[%clk 01:18:17]} {[%emt 00:04:58]} Qxd6 {[%clk
01:11:56]} {[%emt 00:00:10]} 14. Qa3 {[%clk 01:17:59]} {[%emt 00:00:48]} Ke7
{[%clk 01:07:59]} {[%emt 00:04:27]} 15. Re1 {[%clk 01:15:00]} {[%emt 00:03:29]}
Qxa3 {[%clk 01:06:43]} {[%emt 00:01:46]} 16. Rxa3 {[%clk 01:14:57]} {[%emt
00:00:33]} Kd6 {[%clk 01:04:51]} {[%emt 00:02:22]} 17. Ne5 {[%clk 01:14:30]}
{[%emt 00:00:57]} Be6 {[%clk 01:04:11]} {[%emt 00:01:10]} 18. Nd2 {[%clk
01:13:11]} {[%emt 00:01:48]} Rhe8 {[%clk 00:51:04]} {[%emt 00:13:37]} 19. Rea1
{[%clk 01:11:10]} {[%emt 00:02:31]} Re7 {[%clk 00:48:38]} {[%emt 00:02:57]} 20.
Ra6 {[%clk 01:06:45]} {[%emt 00:04:53]} Rc8 {[%clk 00:39:14]} {[%emt 00:09:56]}
21. c4 {[%clk 00:59:51]} {[%emt 00:07:24]} dxc4 {[%clk 00:38:38]} {[%emt
00:01:07]} 22. Ndxc4+ {[%clk 00:59:19]} {[%emt 00:01:02]} Bxc4 {[%clk
00:32:12]} {[%emt 00:06:56]} 23. Nxc4+ {[%clk 00:58:53]} {[%emt 00:00:56]} Kd5
{[%clk 00:32:07]} {[%emt 00:00:35]} 24. Ne3+ {[%clk 00:59:15]} {[%emt
00:00:07]} Ke6 {[%clk 00:28:46]} {[%emt 00:03:52]} 25. Bc4+ {[%clk 00:55:40]}
{[%emt 00:04:02]} Kd7 {[%clk 00:25:08]} {[%emt 00:04:12]} 26. Rxa7+ {[%clk
00:55:51]} {[%emt 00:00:18]} Rc7 {[%clk 00:24:35]} {[%emt 00:01:02]} 27. Rxc7+
{[%clk 00:55:09]} {[%emt 00:01:12]} Kxc7 {[%clk 00:24:59]} {[%emt 00:00:06]} 28.
Ra7+ {[%clk 00:53:51]} {[%emt 00:01:48]} Kd8 {[%clk 00:25:18]} {[%emt
00:00:12]} 29. Rxe7 {[%clk 00:53:20]} {[%emt 00:01:01]} Kxe7 {[%clk 00:25:38]}
{[%emt 00:00:10]} 30. Nf5+ {[%clk 00:51:47]} {[%emt 00:02:02]} Kf8 {[%clk
00:25:04]} {[%emt 00:01:05]} 31. Bb3 {[%clk 00:51:56]} {[%emt 00:00:11]} Ne4
{[%clk 00:23:02]} {[%emt 00:02:41]} 32. f3 {[%clk 00:49:36]} {[%emt 00:02:49]}
Nc3 {[%clk 00:20:43]} {[%emt 00:02:50]} 33. Kf2 {[%clk 00:43:25]} {[%emt
00:06:41]} Nxb5 {[%clk 00:19:50]} {[%emt 00:01:23]} 34. Ke3 {[%clk 00:42:34]}
{[%emt 00:01:19]} g6 {[%clk 00:18:04]} {[%emt 00:02:19]} 35. Ng3 {[%clk
00:42:23]} {[%emt 00:00:36]} Nd6 {[%clk 00:13:18]} {[%emt 00:05:21]} 36. Kf4
{[%clk 00:33:53]} {[%emt 00:08:57]} Ke7 {[%clk 00:06:48]} {[%emt 00:07:03]} 37.
Kg5 {[%clk 00:31:29]} {[%emt 00:02:47]} Nd7 {[%clk 00:03:08]} {[%emt 00:04:17]}
38. Bc2 {[%clk 00:25:13]} {[%emt 00:06:44]} Nf6 {[%clk 00:00:59]} {[%emt
00:02:42]} 39. Ne4 {[%clk 00:22:40]} {[%emt 00:03:02]} Nfe8 {[%clk 00:00:39]}
{[%emt 00:00:50]} 40. Nxd6 {[%clk 00:22:30]} {[%emt 00:00:40]} Nxd6 {[%clk
00:00:52]} {[%emt 00:00:17]} 41. Kh6 {[%clk 00:21:21]} {[%emt 00:01:38]} Nb5
{[%clk 00:24:43]} {[%emt 00:06:40]} 42. d5 {[%clk 00:49:59]} {[%emt 00:01:53]}
Nc3 {[%clk 00:23:16]} {[%emt 00:01:58]} 43. Bb3 {[%clk 00:49:43]} {[%emt
00:00:45]} Ne2 {[%clk 00:21:05]} {[%emt 00:02:42]} 44. Kxh7 {[%clk 00:46:45]}
{[%emt 00:03:28]} Nf4 {[%clk 00:17:21]} {[%emt 00:04:14]} 45. g3 {[%clk
00:45:43]} {[%emt 00:01:33]} Nd3 {[%clk 00:15:37]} {[%emt 00:02:13]} 46. f4
{[%clk 00:44:31]} {[%emt 00:01:42]} Nf2 {[%clk 00:13:49]} {[%emt 00:02:18]} 47.
d6+ {[%clk 00:44:07]} {[%emt 00:00:55]} Kxd6 {[%clk 00:14:08]} {[%emt
00:00:10]} 48. Bxf7 {[%clk 00:44:29]} {[%emt 00:00:07]} Ng4 {[%clk 00:13:25]}
{[%emt 00:01:13]} 49. h4 {[%clk 00:44:04]} {[%emt 00:00:52]} Nf6+ {[%clk
00:12:54]} {[%emt 00:01:05]} 50. Kxg6 {[%clk 00:44:21]} {[%emt 00:00:13]} Ke7
{[%clk 00:12:53]} {[%emt 00:00:31]} 51. Bb3 {[%clk 00:44:08]} {[%emt 00:00:40]}
Ne4 {[%clk 00:12:59]} {[%emt 00:00:27]} 1-0

[Event "Swedish Chess Championship 2019: Minior-SM"]
[Site "Stiga Sports Arena, Arenatorget 1, Eskilstuna, Sweden, Sweden"]
[Date "2019.07.10"]
[Round "4.2"]
[White "Strom-Engdahl, Alexander"]
[Black "Enholm, Herman"]
[Result "1/2-1/2"]
[TimeControl "90 minutes for 40 moves + 30 minutes for the rest of the game + 30 seconds per move from move one"]
[WhiteFideId "1741586"]
[BlackFideId "1744500"]
[WhiteElo "1866"]
[BlackElo "1695"]

1. c4 {[%clk 01:30:29]} {[%emt 00:00:30]} Nf6 {[%clk 01:30:29]} {[%emt
00:00:31]} 2. Nc3 {[%clk 01:30:23]} {[%emt 00:00:35]} c5 {[%clk 01:29:48]}
{[%emt 00:01:12]} 3. g3 {[%clk 01:30:19]} {[%emt 00:00:34]} e6 {[%clk
01:28:06]} {[%emt 00:02:12]} 4. e4 {[%clk 01:23:18]} {[%emt 00:07:30]} Nc6
{[%clk 01:25:40]} {[%emt 00:02:56]} 5. Bg2 {[%clk 01:21:16]} {[%emt 00:02:32]}
Be7 {[%clk 01:20:49]} {[%emt 00:05:21]} 6. d3 {[%clk 01:19:45]} {[%emt
00:02:01]} O-O {[%clk 01:18:15]} {[%emt 00:03:04]} 7. Nge2 {[%clk 01:17:21]}
{[%emt 00:02:54]} Nd4 {[%clk 01:14:34]} {[%emt 00:04:12]} 8. Be3 {[%clk
01:16:29]} {[%emt 00:01:22]} e5 {[%clk 01:13:13]} {[%emt 00:01:51]} 9. Bg5
{[%clk 01:12:29]} {[%emt 00:04:29]} d6 {[%clk 01:11:11]} {[%emt 00:02:32]} 10.
Bxf6 {[%clk 01:01:40]} {[%emt 00:11:20]} Bxf6 {[%clk 01:11:06]} {[%emt
00:00:34]} 11. O-O {[%clk 01:02:02]} {[%emt 00:00:09]} Be6 {[%clk 00:52:21]}
{[%emt 00:19:16]} 12. f4 {[%clk 00:47:56]} {[%emt 00:14:36]} Nxe2+ {[%clk
00:42:59]} {[%emt 00:09:52]} 13. Qxe2 {[%clk 00:47:02]} {[%emt 00:01:24]} exf4
{[%clk 00:42:37]} {[%emt 00:00:51]} 14. gxf4 {[%clk 00:47:13]} {[%emt
00:00:18]} Bd4+ {[%clk 00:42:04]} {[%emt 00:01:04]} 15. Kh1 {[%clk 00:47:31]}
{[%emt 00:00:12]} Qh4 {[%clk 00:38:51]} {[%emt 00:03:43]} 16. Nb5 {[%clk
00:43:53]} {[%emt 00:04:08]} Bg4 {[%clk 00:36:57]} {[%emt 00:02:23]} 17. Bf3
{[%clk 00:44:06]} {[%emt 00:00:17]} Bh3 {[%clk 00:36:38]} {[%emt 00:00:49]} 18.
Bg2 {[%clk 00:43:06]} {[%emt 00:01:30]} Bg4 {[%clk 00:32:27]} {[%emt 00:04:41]}
19. Qe1 {[%clk 00:34:32]} {[%emt 00:09:04]} Qf6 {[%clk 00:25:09]} {[%emt
00:07:48]} 20. Nxd4 {[%clk 00:33:35]} {[%emt 00:01:28]} Qxd4 {[%clk 00:24:24]}
{[%emt 00:01:14]} 21. Qd2 {[%clk 00:31:53]} {[%emt 00:02:09]} Rab8 {[%clk
00:22:12]} {[%emt 00:02:45]} 22. a4 {[%clk 00:30:12]} {[%emt 00:02:11]} a6
{[%clk 00:19:33]} {[%emt 00:03:08]} 23. Bf3 {[%clk 00:22:19]} {[%emt 00:08:24]}
Bxf3+ {[%clk 00:16:19]} {[%emt 00:03:44]} 24. Rxf3 {[%clk 00:22:44]} {[%emt
00:00:05]} b5 {[%clk 00:15:58]} {[%emt 00:00:51]} 25. axb5 {[%clk 00:22:08]}
{[%emt 00:01:06]} axb5 {[%clk 00:16:10]} {[%emt 00:00:19]} 26. Qc3 {[%clk
00:18:06]} {[%emt 00:04:31]} bxc4 {[%clk 00:13:10]} {[%emt 00:03:29]} 27. Qxd4
{[%clk 00:18:21]} {[%emt 00:00:16]} cxd4 {[%clk 00:13:28]} {[%emt 00:00:12]} 28.
dxc4 {[%clk 00:18:45]} {[%emt 00:00:06]} Rxb2 {[%clk 00:13:24]} {[%emt
00:00:33]} 29. Rd3 {[%clk 00:19:09]} {[%emt 00:00:06]} f5 {[%clk 00:11:05]}
{[%emt 00:02:50]} 1/2-1/2

[Event "Swedish Chess Championship 2019: Minior-SM"]
[Site "Stiga Sports Arena, Arenatorget 1, Eskilstuna, Sweden, Sweden"]
[Date "2019.07.10"]
[Round "4.3"]
[White "Platkovs, Daniils"]
[Black "Morell, Ludvig"]
[Result "0-1"]
[TimeControl "90 minutes for 40 moves + 30 minutes for the rest of the game + 30 seconds per move from move one"]
[WhiteFideId "1739298"]
[BlackFideId "1736779"]
[WhiteElo "1528"]
[BlackElo "1744"]

1. e4 {[%clk 01:30:59]} c5 {[%clk 01:29:42]} {[%emt 00:01:18]} 2. Nc3 {[%clk
01:31:19]} {[%emt 00:00:09]} Nc6 {[%clk 01:29:35]} {[%emt 00:00:37]} 3. f4
{[%clk 01:31:34]} {[%emt 00:00:15]} g6 {[%clk 01:29:34]} {[%emt 00:00:31]} 4.
Nf3 {[%clk 01:31:52]} {[%emt 00:00:13]} Bg7 {[%clk 01:29:33]} {[%emt 00:00:30]}
5. Bc4 {[%clk 01:31:10]} {[%emt 00:01:12]} e6 {[%clk 01:29:33]} {[%emt
00:00:30]} 6. d3 {[%clk 01:30:21]} {[%emt 00:01:20]} Nge7 {[%clk 01:29:09]}
{[%emt 00:00:53]} 7. O-O {[%clk 01:29:01]} {[%emt 00:01:50]} d5 {[%clk
01:27:01]} {[%emt 00:02:39]} 8. Bb3 {[%clk 01:28:51]} {[%emt 00:00:40]} O-O
{[%clk 01:24:02]} {[%emt 00:03:29]} 9. Qe1 {[%clk 01:27:29]} {[%emt 00:01:52]}
b6 {[%clk 01:18:12]} {[%emt 00:06:21]} 10. Qh4 {[%clk 01:23:57]} {[%emt
00:04:02]} Nd4 {[%clk 01:10:57]} {[%emt 00:07:44]} 11. f5 {[%clk 01:16:23]}
{[%emt 00:08:05]} dxe4 {[%clk 00:55:54]} {[%emt 00:15:33]} 12. dxe4 {[%clk
01:08:03]} {[%emt 00:08:49]} Nxf3+ {[%clk 00:41:46]} {[%emt 00:14:39]} 13. Rxf3
{[%clk 01:02:52]} {[%emt 00:05:41]} Bd4+ {[%clk 00:32:49]} {[%emt 00:09:26]} 14.
Be3 {[%clk 00:58:12]} {[%emt 00:05:10]} Bxe3+ {[%clk 00:32:40]} {[%emt
00:00:40]} 15. Rxe3 {[%clk 00:58:22]} {[%emt 00:00:21]} exf5 {[%clk 00:24:12]}
{[%emt 00:08:58]} 16. Qf6 {[%clk 00:35:04]} {[%emt 00:23:47]} Qd4 {[%clk
00:20:24]} {[%emt 00:04:18]} 17. Qg5 {[%clk 00:32:58]} {[%emt 00:02:36]} f4
{[%clk 00:18:22]} {[%emt 00:02:32]} 18. Qxf4 {[%clk 00:31:44]} {[%emt
00:01:43]} Nf5 {[%clk 00:18:25]} {[%emt 00:00:27]} 19. Nd5 {[%clk 00:24:27]}
{[%emt 00:07:48]} Nxe3 {[%clk 00:17:33]} {[%emt 00:01:22]} 20. Qxe3 {[%clk
00:23:46]} {[%emt 00:01:11]} Qxe3+ {[%clk 00:17:44]} {[%emt 00:00:19]} 21. Nxe3
{[%clk 00:24:10]} {[%emt 00:00:06]} Be6 {[%clk 00:16:40]} {[%emt 00:01:33]} 22.
Nd5 {[%clk 00:20:21]} {[%emt 00:04:20]} Bxd5 {[%clk 00:16:32]} {[%emt
00:00:38]} 23. Bxd5 {[%clk 00:20:26]} {[%emt 00:00:24]} Rad8 {[%clk 00:16:55]}
{[%emt 00:00:06]} 24. Rf1 {[%clk 00:19:50]} {[%emt 00:01:07]} Kg7 {[%clk
00:17:01]} {[%emt 00:00:25]} 25. c4 {[%clk 00:19:28]} {[%emt 00:00:53]} Rd7
{[%clk 00:15:22]} {[%emt 00:02:07]} 26. g4 {[%clk 00:17:19]} {[%emt 00:02:40]}
Re7 {[%clk 00:13:58]} {[%emt 00:01:55]} 27. Kf2 {[%clk 00:08:22]} {[%emt
00:09:26]} Re5 {[%clk 00:09:34]} {[%emt 00:04:54]} 28. Ke3 {[%clk 00:06:19]}
{[%emt 00:02:34]} f6 {[%clk 00:04:50]} {[%emt 00:05:14]} 29. h4 {[%clk
00:04:06]} {[%emt 00:02:43]} h6 {[%clk 00:04:09]} {[%emt 00:01:12]} 30. b3
{[%clk 00:03:36]} {[%emt 00:00:59]} h5 {[%clk 00:03:18]} {[%emt 00:01:21]} 31.
Rg1 {[%clk 00:02:31]} {[%emt 00:01:35]} hxg4 {[%clk 00:03:16]} {[%emt
00:00:32]} 32. Rxg4 {[%clk 00:02:35]} {[%emt 00:00:26]} Rh5 {[%clk 00:01:29]}
{[%emt 00:02:14]} 33. Be6 {[%clk 00:01:27]} {[%emt 00:01:42]} Rfh8 {[%clk
00:00:44]} {[%emt 00:01:15]} 34. Bf5 {[%clk 00:00:50]} {[%emt 00:01:07]} g5
{[%clk 00:01:05]} {[%emt 00:00:09]} 35. hxg5 {[%clk 00:00:50]} {[%emt
00:00:30]} Rxg5 {[%clk 00:01:28]} {[%emt 00:00:07]} 36. Rxg5+ {[%clk 00:00:41]}
{[%emt 00:00:38]} fxg5 {[%clk 00:01:54]} {[%emt 00:00:04]} 37. a3 {[%clk
00:00:50]} {[%emt 00:00:21]} Kf6 {[%clk 00:02:07]} {[%emt 00:00:17]} 38. b4
{[%clk 00:00:56]} {[%emt 00:00:24]} Ke5 {[%clk 00:01:45]} {[%emt 00:00:51]} 39.
Bd7 {[%clk 00:00:45]} {[%emt 00:00:41]} Rd8 {[%clk 00:01:05]} {[%emt 00:01:09]}
40. Bc6 {[%clk 00:00:40]} {[%emt 00:00:37]} Rd4 {[%clk 00:00:41]} {[%emt
00:00:54]} 41. Bd5 {[%clk 00:00:40]} {[%emt 00:00:29]} g4 {[%clk 00:00:35]}
{[%emt 00:00:36]} 42. bxc5 {[%clk 00:29:54]} {[%emt 00:01:17]} bxc5 {[%clk
00:30:11]} {[%emt 00:00:53]} 43. a4 {[%clk 00:29:59]} {[%emt 00:00:25]} a5
{[%clk 00:30:10]} {[%emt 00:00:29]} 44. Kf2 {[%clk 00:29:37]} {[%emt 00:00:52]}
Rxe4 {[%clk 00:30:26]} {[%emt 00:00:15]} 45. Kg3 {[%clk 00:28:24]} {[%emt
00:01:43]} Rd4 {[%clk 00:29:57]} {[%emt 00:00:56]} 46. Bg8 {[%clk 00:27:48]}
{[%emt 00:01:09]} Kf5 {[%clk 00:28:47]} {[%emt 00:01:40]} 47. Bf7 {[%clk
00:27:25]} {[%emt 00:00:52]} Kg5 {[%clk 00:29:03]} {[%emt 00:00:14]} 48. Be6
{[%clk 00:27:36]} {[%emt 00:00:20]} Rd3+ {[%clk 00:29:10]} {[%emt 00:00:14]} 49.
Kf2 {[%clk 00:27:14]} {[%emt 00:01:01]} Ra3 {[%clk 00:29:12]} {[%emt 00:00:25]}
50. Bd7 {[%clk 00:27:09]} {[%emt 00:00:38]} Kf4 {[%clk 00:29:31]} {[%emt
00:00:10]} 0-1

[Event "Swedish Chess Championship 2019: Minior-SM"]
[Site "Stiga Sports Arena, Arenatorget 1, Eskilstuna, Sweden, Sweden"]
[Date "2019.07.10"]
[Round "4.4"]
[White "Sandberg, Simon"]
[Black "Backlund, Elias"]
[Result "1-0"]
[TimeControl "90 minutes for 40 moves + 30 minutes for the rest of the game + 30 seconds per move from move one"]
[WhiteFideId "1735640"]
[BlackFideId "1753207"]
[WhiteElo "1421"]
[BlackElo "1656"]

1. e4 {[%clk 01:30:56]} {[%emt 00:00:03]} d6 {[%clk 01:30:51]} {[%emt
00:00:10]} 2. d4 {[%clk 01:31:11]} {[%emt 00:00:15]} Nf6 {[%clk 01:31:13]}
{[%emt 00:00:07]} 3. Nc3 {[%clk 01:32:03]} {[%emt 00:00:07]} g6 {[%clk
01:31:49]} {[%emt 00:00:25]} 4. Nf3 {[%clk 01:32:19]} {[%emt 00:00:14]} Bg7
{[%clk 01:31:57]} {[%emt 00:00:22]} 5. Bg5 {[%clk 01:32:38]} {[%emt 00:00:11]}
h6 {[%clk 01:32:02]} {[%emt 00:00:25]} 6. Bh4 {[%clk 01:31:57]} {[%emt
00:01:11]} O-O {[%clk 01:32:04]} {[%emt 00:00:26]} 7. g4 {[%clk 01:32:01]}
{[%emt 00:00:28]} Bxg4 {[%clk 01:30:59]} {[%emt 00:01:35]} 8. Rg1 {[%clk
01:31:59]} {[%emt 00:00:32]} g5 {[%clk 01:29:02]} {[%emt 00:02:29]} 9. Bg3
{[%clk 01:31:40]} {[%emt 00:00:48]} Nbd7 {[%clk 01:27:40]} {[%emt 00:01:52]} 10.
Be2 {[%clk 01:29:41]} {[%emt 00:02:29]} Bxf3 {[%clk 01:26:03]} {[%emt
00:02:07]} 11. Bxf3 {[%clk 01:29:44]} {[%emt 00:00:27]} e5 {[%clk 01:26:06]}
{[%emt 00:00:27]} 12. d5 {[%clk 01:29:24]} {[%emt 00:00:51]} a5 {[%clk
01:21:31]} {[%emt 00:05:04]} 13. h4 {[%clk 01:29:11]} {[%emt 00:00:43]} Nh7
{[%clk 01:20:07]} {[%emt 00:01:53]} 14. hxg5 {[%clk 01:22:25]} {[%emt
00:07:16]} Nxg5 {[%clk 01:19:40]} {[%emt 00:00:57]} 15. Bg4 {[%clk 01:19:46]}
{[%emt 00:03:09]} Nc5 {[%clk 01:13:37]} {[%emt 00:06:33]} 16. Bf5 {[%clk
01:19:39]} {[%emt 00:00:38]} Kh8 {[%clk 01:04:56]} {[%emt 00:09:10]} 17. Qh5
{[%clk 01:15:50]} {[%emt 00:04:19]} Qf6 {[%clk 01:00:14]} {[%emt 00:05:13]} 18.
O-O-O {[%clk 01:14:32]} {[%emt 00:01:48]} Rg8 {[%clk 00:53:47]} {[%emt
00:06:57]} 19. Bh4 {[%clk 01:10:51]} {[%emt 00:04:11]} Bf8 {[%clk 00:52:51]}
{[%emt 00:01:26]} 20. Rg2 {[%clk 01:06:15]} {[%emt 00:05:06]} Qe7 {[%clk
00:52:06]} {[%emt 00:01:15]} 21. Rdg1 {[%clk 01:06:02]} {[%emt 00:00:44]} f6
{[%clk 00:51:50]} {[%emt 00:00:46]} 22. Ne2 {[%clk 00:56:33]} {[%emt 00:09:58]}
b5 {[%clk 00:49:09]} {[%emt 00:03:11]} 23. f4 {[%clk 00:55:40]} {[%emt
00:01:24]} exf4 {[%clk 00:48:27]} {[%emt 00:01:12]} 24. Nxf4 {[%clk 00:55:43]}
{[%emt 00:00:27]} Qd8 {[%clk 00:43:51]} {[%emt 00:05:05]} 25. Qf7 {[%clk
00:45:34]} {[%emt 00:10:40]} Qe7 {[%clk 00:41:12]} {[%emt 00:03:09]} 26. Ng6+
{[%clk 00:45:21]} {[%emt 00:00:43]} Rxg6 {[%clk 00:41:29]} {[%emt 00:00:12]} 27.
Qxg6 {[%clk 00:45:16]} {[%emt 00:00:35]} Qg7 {[%clk 00:40:56]} {[%emt
00:01:03]} 28. Qh5 {[%clk 00:44:16]} {[%emt 00:01:30]} Be7 {[%clk 00:40:22]}
{[%emt 00:01:04]} 29. Bxg5 {[%clk 00:44:23]} {[%emt 00:00:23]} fxg5 {[%clk
00:40:37]} {[%emt 00:00:15]} 30. Rh1 {[%clk 00:44:00]} {[%emt 00:00:54]} Kg8
{[%clk 00:35:23]} {[%emt 00:05:43]} 31. Qxh6 {[%clk 00:43:24]} {[%emt
00:01:03]} Qxh6 {[%clk 00:35:13]} {[%emt 00:00:42]} 32. Rxh6 {[%clk 00:43:44]}
{[%emt 00:00:11]} Kg7 {[%clk 00:35:25]} {[%emt 00:00:18]} 33. Rh7+ {[%clk
00:43:53]} {[%emt 00:00:20]} Kf6 {[%clk 00:35:35]} {[%emt 00:00:21]} 34. Rgh2
{[%clk 00:43:44]} {[%emt 00:00:39]} 1-0

[Event "Swedish Chess Championship 2019: Minior-SM"]
[Site "Stiga Sports Arena, Arenatorget 1, Eskilstuna, Sweden, Sweden"]
[Date "2019.07.10"]
[Round "4.5"]
[White "Lindholm, Marcus"]
[Black "Wikman, Viktor"]
[Result "1/2-1/2"]
[TimeControl "90 minutes for 40 moves + 30 minutes for the rest of the game + 30 seconds per move from move one"]
[WhiteFideId "1743473"]
[BlackFideId "1744720"]
[WhiteElo "1359"]
[BlackElo "1633"]

1. e4 {[%clk 01:30:54]} {[%emt 00:00:05]} e6 {[%clk 01:30:49]} {[%emt
00:00:11]} 2. d4 {[%clk 01:31:17]} {[%emt 00:00:07]} d5 {[%clk 01:31:15]}
{[%emt 00:00:04]} 3. e5 {[%clk 01:31:38]} {[%emt 00:00:09]} c5 {[%clk
01:31:37]} {[%emt 00:00:08]} 4. c3 {[%clk 01:31:45]} {[%emt 00:00:23]} Nc6
{[%clk 01:32:02]} {[%emt 00:00:06]} 5. Nf3 {[%clk 01:31:58]} {[%emt 00:00:17]}
Bd7 {[%clk 01:32:10]} {[%emt 00:00:21]} 6. Be3 {[%clk 01:32:09]} {[%emt
00:00:20]} Qb6 {[%clk 01:31:28]} {[%emt 00:01:12]} 7. b3 {[%clk 01:28:49]}
{[%emt 00:03:49]} cxd4 {[%clk 01:28:36]} {[%emt 00:03:23]} 8. Bxd4 {[%clk
01:26:26]} {[%emt 00:02:52]} Nxd4 {[%clk 01:27:40]} {[%emt 00:01:26]} 9. Qxd4
{[%clk 01:21:19]} {[%emt 00:05:37]} Bc5 {[%clk 01:27:51]} {[%emt 00:00:19]} 10.
Qd2 {[%clk 01:21:34]} {[%emt 00:00:15]} a5 {[%clk 01:25:57]} {[%emt 00:02:24]}
11. Nd4 {[%clk 01:16:23]} {[%emt 00:05:41]} Ne7 {[%clk 01:24:20]} {[%emt
00:02:07]} 12. f4 {[%clk 01:03:58]} {[%emt 00:12:55]} Bxd4 {[%clk 01:23:37]}
{[%emt 00:01:12]} 13. Qxd4 {[%clk 00:59:48]} {[%emt 00:04:41]} Qxd4 {[%clk
01:23:57]} {[%emt 00:00:09]} 14. cxd4 {[%clk 01:00:10]} {[%emt 00:00:09]} Nf5
{[%clk 01:24:23]} {[%emt 00:00:04]} 15. Bd3 {[%clk 00:56:55]} {[%emt 00:03:45]}
Nxd4 {[%clk 01:23:38]} {[%emt 00:01:14]} 16. O-O {[%clk 00:56:14]} {[%emt
00:01:12]} O-O {[%clk 01:22:45]} {[%emt 00:01:23]} 17. Nd2 {[%clk 00:54:18]}
{[%emt 00:02:26]} Rfc8 {[%clk 01:22:21]} {[%emt 00:00:53]} 18. Nf3 {[%clk
00:47:29]} {[%emt 00:07:20]} Bb5 {[%clk 01:19:22]} {[%emt 00:03:29]} 19. Nxd4
{[%clk 00:38:47]} {[%emt 00:09:12]} Bxd3 {[%clk 01:19:10]} {[%emt 00:00:41]} 20.
Rfd1 {[%clk 00:38:29]} {[%emt 00:00:48]} Rc3 {[%clk 01:18:43]} {[%emt
00:00:59]} 21. Rd2 {[%clk 00:29:33]} {[%emt 00:09:26]} a4 {[%clk 01:12:08]}
{[%emt 00:07:05]} 22. Rad1 {[%clk 00:23:00]} {[%emt 00:07:02]} axb3 {[%clk
01:11:09]} {[%emt 00:01:29]} 23. axb3 {[%clk 00:14:39]} {[%emt 00:08:52]} Be4
{[%clk 01:08:38]} {[%emt 00:02:59]} 24. b4 {[%clk 00:08:32]} {[%emt 00:06:38]}
h5 {[%clk 01:01:19]} {[%emt 00:07:47]} 25. Rf2 {[%clk 00:06:42]} {[%emt
00:02:22]} g6 {[%clk 00:50:16]} {[%emt 00:11:32]} 26. Ne2 {[%clk 00:05:05]}
{[%emt 00:02:07]} Rc4 {[%clk 00:48:08]} {[%emt 00:02:37]} 27. Rd4 {[%clk
00:04:07]} {[%emt 00:01:29]} Ra1+ {[%clk 00:45:02]} {[%emt 00:03:34]} 28. Rf1
{[%clk 00:04:14]} {[%emt 00:00:25]} Ra4 {[%clk 00:43:51]} {[%emt 00:01:40]} 29.
Rxc4 {[%clk 00:04:27]} {[%emt 00:00:17]} dxc4 {[%clk 00:44:13]} {[%emt
00:00:07]} 30. Nc3 {[%clk 00:04:43]} {[%emt 00:00:15]} Rxb4 {[%clk 00:43:15]}
{[%emt 00:01:29]} 31. Nxe4 {[%clk 00:04:59]} {[%emt 00:00:13]} b5 {[%clk
00:43:43]} {[%emt 00:00:03]} 32. Rc1 {[%clk 00:04:21]} {[%emt 00:01:07]} Rb2
{[%clk 00:43:43]} {[%emt 00:00:30]} 33. Rd1 {[%clk 00:03:27]} {[%emt 00:01:24]}
b4 {[%clk 00:41:51]} {[%emt 00:02:23]} 34. Rd8+ {[%clk 00:03:09]} {[%emt
00:00:48]} Kg7 {[%clk 00:42:06]} {[%emt 00:00:16]} 35. Nf6 {[%clk 00:03:07]}
{[%emt 00:00:31]} Rb1+ {[%clk 00:39:21]} {[%emt 00:03:14]} 36. Kf2 {[%clk
00:03:27]} {[%emt 00:00:10]} Rb2+ {[%clk 00:39:48]} {[%emt 00:00:04]} 37. Kg3
{[%clk 00:03:40]} {[%emt 00:00:17]} c3 {[%clk 00:37:28]} {[%emt 00:02:50]} 38.
Rg8+ {[%clk 00:03:56]} {[%emt 00:00:14]} Kh6 {[%clk 00:37:50]} {[%emt
00:00:07]} 39. Rh8+ {[%emt 00:00:33]} 1/2-1/2